Cogmind - Beta 17 @@@ ROGUE MODE // 2026.08.23 @ 17:08:48 Player: BoomBlip Result: Destroyed by VF-HDX(R) with Subdweller Machine Gun Performance ------------- Evolutions (0) 0 Regions Visited (2) 400 Robots Destroyed (13) 65 Value Destroyed (324) 324 Prototype IDs (0) 0 Alien Tech Used (0) 0 Bonus (5000) 5000 TOTAL SCORE: 5789 Bonus ------- Prayed to X0-1V1 5000 Cogmind --------- Core Integrity 0/150 Matter 282/300 Energy 99/100 System Corruption 20% Temperature Cool (0) Movement Rolling (95) Ox1 Location -10/Subcaves Parts ------- > --- POWER (1) -------- (None) > --- PROPULSION (2) --- Wheel > --- UTILITY (2) ------ Medium Storage Unit Hardened Light Armor Plating > --- WEAPON (2) ------- Assault Rifle > --- INVENTORY (10) --- Light Ion Engine Light Treads Light Treads Compact Wheel Hardened Light Armor Plating Hardened Light Armor Plating X0-1V1's Piety Tracker Assault Rifle Assault Rifle Grenade Launcher Peak State ------------ > --- POWER ------------ Light Nuclear Core > --- PROPULSION ------- Wheel Wheel > --- UTILITY ---------- Medium Storage Unit Hardened Light Armor Plating > --- WEAPON ----------- Light Assault Rifle Light Assault Rifle > --- INVENTORY -------- Ion Engine Ion Engine Light Ion Engine Light Treads Light Treads Compact Wheel EM Pulse Gun Light Assault Rifle Light Assault Rifle Grenade Launcher [Rating: 11] Favorites ----------- Power Light Nuclear Core Engine Ion Engine Power Core Light Nuclear Core Propulsion Wheel Leg Aluminum Leg Wheel Wheel Utility Medium Storage Unit Storage Medium Storage Unit Protection Hardened Light Armor Plating Weapon Light Assault Rifle Energy Gun Small Laser Ballistic Gun Light Assault Rifle Build | -11 -10 -10 ------- Run | Yrd Mat Sub Slots Evolved . | . . . Power . | . . . Propulsion . | . . . Utility . | . . . Weapon . | . . . Parts Attached 15 | . 15 . Power 1 | . 1 . Engine . | . . . Core 1 | . 1 . Reactor . | . . . Propulsion 5 | . 5 . Treads . | . . . Leg . | . . . Wheel 5 | . 5 . Hover . | . . . Flight . | . . . Utility 3 | . 3 . Device . | . . . Storage 1 | . 1 . Processor . | . . . Hackware . | . . . Protection 2 | . 2 . Artifact . | . . . Weapon 6 | . 6 . Energy Gun . | . . . Energy Cannon . | . . . Ballistic Gun 6 | . 6 . Ballistic Cannon . | . . . Launcher . | . . . Special Weapon . | . . . Impact Weapon . | . . . Slashing Weapon . | . . . Piercing Weapon . | . . . Special Melee Weapon . | . . . Unidentified Prototypes . | . . . Parts Lost 6 | . 4 2 Power 1 | . 1 . Propulsion 3 | . 2 1 Utility 1 | . 1 . Weapon 1 | . . 1 Highest Loss Streak 2 | . 2 2 To Critical Strikes . | . . . Average Backups 9 | . 8 10 Power 1 | . 1 1 Propulsion 3 | . 3 3 Utility . | . . 3 Weapon 3 | . 3 3 Tool/Special . | . . . Unused Backups 18 | . 9 9 Power 4 | . 3 1 Propulsion 5 | . 2 3 Utility 3 | . 1 2 Weapon 6 | . 3 3 Tool/Special . | . . . Average Slot Usage (%) 92 | . 93 83 Engine 2 | . 3 . Core 6 | . 7 . Wheel 26 | . 26 27 Storage 14 | . 14 14 Protection 11 | . 11 14 Energy Gun 1 | . 1 . Ballistic Gun 26 | . 26 27 Peak Build Rating 11 | . 11 9 Average Rating 8 | . 8 8 On Entrance 7 | 6 6 9 Avg Prop Armor Cover (%) . | . . . Naked Turns . | . . . Heaviest Build 24 | 12 24 19 Greatest Support 20 | 20 20 20 Greatest Overweight (x) 1 | . 1 1 Average Overweight (x) . | . . . Largest Inventory Capacity 10 | . 10 10 Average Capacity 9 | . 9 10 Most Carried 10 | . 10 10 Average Carried 9 | . 8 10 Final Capacity 10 | 8 10 10 Final Carried 10 | 6 10 10 Class Distribution -------------------- 100% | Mutant Dominant Class ---------------- Mutant | -10/Materials Mutant | -10/Subcaves Resources | -11 -10 -10 ----------- Run | Yrd Mat Sub Matter Collected 468 | 200 268 . Remotely . | . . . Salvage Created 394 | . 394 . Parts 22 | . 22 . Haulers Intercepted . | . . . Recyclers Shooed . | . . . Parts Field Recycled . | . . . Retrieved Matter . | . . . Parts Self-Destructed 3 | . . 3 Prevented . | . . . Parts Restored . | . . . Kills | -11 -10 -10 ------- Run | Yrd Mat Sub Combat Hostiles Destroyed 13 | . 13 . Guns 13 | . 13 . Classes Destroyed 2 | . 2 . Swarmer 6 | . 6 . Grunt 7 | . 7 . Best Kill Streak 3 | . 3 . Combat Bots Only 3 | . 3 . Max Kills in Single Turn 1 | . 1 . Gunslinging . | . . . Exploded . | . . . Melee . | . . . Uniques/NPCs Destroyed . | . . . Combat | -11 -10 -10 -------- Run | Yrd Mat Sub Hostile Shots Fired 134 | . 95 39 Missed 32 | . 11 21 Hits 102 | . 84 18 Projectile 102 | . 84 18 Critical Strikes 1 | . 1 . Damage Taken 1271 | . 911 360 Core 258 | . 221 37 Absorbed by Shields . | . . . Ignored by Resistances 18 | . . 18 Core Remaining (%) 100 | 100 . . Volleys Fired 57 | . 57 . Largest 2 | . 2 . Hottest 60 | . 60 . Shots Fired 114 | . 114 . Gun 114 | . 114 . Cannon . | . . . Launcher . | . . . Special . | . . . Kinetic 104 | . 104 . Thermal 10 | . 10 . Explosive . | . . . Electromagnetic . | . . . Robot Hit Streak 10 | . 10 . Robot Miss Streak 4 | . 4 . Penetration Max . | . . . Secondary Targets 1 | . 1 . Max Gunslinging Chain 1 | . 1 . Shots Hit Robots 66 | . 66 . Core Hits 28 | . 28 . Critical Kills . | . . . Critical Parts Destroyed . | . . . Critical Strikes . | . . . Melee Attacks . | . . . Impact . | . . . Slashing . | . . . Piercing . | . . . Sneak Attacks . | . . . Combat Hostiles . | . . . Follow-up Attacks . | . . . Damage Inflicted 631 | . 631 . Guns 627 | . 627 . Cannons . | . . . Explosions . | . . . Melee . | . . . Ramming 4 | . 4 . Kinetic 540 | . 540 . Thermal 87 | . 87 . Explosive . | . . . Electromagnetic . | . . . Impact . | . . . Slashing . | . . . Piercing . | . . . Highest Corruption 20 | . 2 20 Average Corruption 5 | . 2 12 Corruption Purged . | . . . Corruption Blocked . | . . . Effects 12 | . 4 8 Message Errors 4 | . . 4 Matter Fused 3 | . . 3 Energy Discharges 2 | . 2 . Parts Fused 1 | . 1 . Data Loss (major) 1 | . 1 . Misdirections 1 | . . 1 Overload Shots . | . . . Overflow Damage . | . . . Projectiles . | . . . Explosions . | . . . Melee . | . . . Knockbacks . | . . . Impact . | . . . Kinetic . | . . . Secondary . | . . . Self-Inflicted Damage 2 | . 2 . Shots . | . . . Rammed 1 | . 1 . Targets Rammed 1 | . 1 . Kicked . | . . . Crushed . | . . . Highest Temperature 252 | . 252 . Average Temperature 77 | . 77 . Received Heat Transfer 456 | . 387 69 Siege Activations . | . . . Martial Activations . | . . . Shielding Activations . | . . . Robots Disrupted . | . . . Combat Hostiles . | . . . Robots Corrupted . | . . . Combat Hostiles . | . . . Parts Fried . | . . . Impact Corruptions . | . . . Robots Melted . | . . . Combat Hostiles . | . . . Parts Melted . | . . . Heat Transferred 200 | . 200 . Parts Sabotaged . | . . . Parts Stolen . | . . . Parts Stripped . | . . . Power Chain Reactions . | . . . Alert | -11 -10 -10 ------- Run | Yrd Mat Sub Maximum Alert Level . | . . . Low Security (%) 100 | . 100 . Level 1 . | . . . Level 2 . | . . . Level 3 . | . . . Level 4 . | . . . Level 5 . | . . . High Security . | . . . Max Security . | . . . Peak Influence 62 | . 62 . Initial . | . . . Average 16 | . 16 . Influence Increases 336 | . 336 . Destroy 0b10 Robot/C 260 | . 260 . Destroy Leader 60 | . 60 . Successful Hack 16 | . 16 . Influence Decreases 336 | . 336 . Time Decay 272 | . 272 . Lost Part 20 | . 20 . Purge Threat 44 | . 44 . Squads Dispatched 3 | . 3 . Investigation 2 | . 2 . Extermination . | . . . Reinforcement 1 | . 1 . Assault . | . . . Garrison . | . . . Intercept . | . . . Searches Triggered . | . . . Construction Impeded . | . . . Haulers Reinforced . | . . . Active Scanning Responses . | . . . Cargo Convoy Interrupts . | . . . Stealth | -11 -10 -10 --------- Run | Yrd Mat Sub Distress Signals 2 | . 2 . Communications Jammed . | . . . Distress Signals . | . . . Times Spotted 26 | . 21 5 Peak Tracking Total 5 | . 4 5 Tactical Retreats . | . . . Traps | -11 -10 -10 ------- Run | Yrd Mat Sub Traps Triggered 3 | . 3 . Indirectly . | . . . Trap Hack Attempts . | . . . Triggered . | . . . Disarmed . | . . . Reprogrammed . | . . . Reused . | . . . Traps Extracted . | . . . Installed . | . . . Triggered . | . . . Machines | -11 -10 -10 ---------- Run | Yrd Mat Sub Machines Disabled . | . . . Max in Single Turn . | . . . Machines Repaired . | . . . Machines Dismantled . | . . . Machines Sabotaged . | . . . Overloaded Fab Kills . | . . . Hacking | -11 -10 -10 --------- Run | Yrd Mat Sub Machines Accessed 5 | . 5 . Terminals 5 | . 5 . Fabricators . | . . . Repair Stations . | . . . Recycling Units . | . . . Scanalyzers . | . . . Garrison Access . | . . . Total Hacks 13 | . 13 . Successful 7 | . 7 . Failed 6 | . 6 . Catastrophic 1 | . 1 . Database Lockouts . | . . . Manual 14 | . 14 . Terminals 13 | . 13 . Fabricators . | . . . Repair Stations . | . . . Recycling Units . | . . . Scanalyzers . | . . . Garrison Access . | . . . Terminal Hacks 1 | . 1 . Unreport Threat 1 | . 1 . Fabricator Hacks . | . . . Repair Station Hacks . | . . . Recycling Unit Hacks . | . . . Scanalyzer . | . . . Garrison Access Hacks . | . . . Unauthorized Hacks 6 | . 6 . Terminals 6 | . 6 . Botnet 5 | . 5 . Skim 1 | . 1 . Fabricators . | . . . Repair Stations . | . . . Recycling Units . | . . . Scanalyzers . | . . . Garrison Access . | . . . Data Cores Recovered . | . . . Used . | . . . Hacking Detections 5 | . 5 . Full Trace Events . | . . . Feedback Events . | . . . Feedback Blocked . | . . . Robot Schematics Acquired . | . . . Robots Built . | . . . Authchips . | . . . Time . | . . . Total Robot Build Rating . | . . . Part Schematics Acquired . | . . . Parts Built . | . . . Authchips . | . . . Time . | . . . Total Part Build Rating . | . . . Part Studies Acquired . | . . . Parts Repaired . | . . . Time . | . . . Parts Recycled . | . . . Recycled Matter . | . . . Retrieved Matter . | . . . Retrieved Components . | . . . Parts Scanalyzed . | . . . Part Schematics Acquired . | . . . Parts Damaged . | . . . Bothacking | -11 -10 -10 ------------ Run | Yrd Mat Sub Used RIF Installer . | . . . Robots Hacked . | . . . Non-combat . | . . . Combat . | . . . Robot Hacks Applied . | . . . Relay Couplers Released . | . . . Fabnet Peak Effective % . | . . . Robots Rewired . | . . . Allies Hacked . | . . . Hacks Repelled . | . . . Allies | -11 -10 -10 -------- Run | Yrd Mat Sub Total Allies . | . . . Largest Group . | . . . Highest-Rated Group . | . . . Highest-Rated Ally . | . . . Total Orders . | . . . Ally Attacks . | . . . Total Damage . | . . . Kills . | . . . Allies Corrupted . | . . . Allies Melted . | . . . X0-1V1 Amusement Gains 7 | . 7 . Good Acts 1 | . . 1 Bad Acts 1 | . . 1 Intel | -11 -10 -10 ------- Run | Yrd Mat Sub Active Infowar (turns) . | . . . Robot Analysis Total . | . . . Derelict Logs Recovered . | . . . Drone Launches . | . . . Drone Recoveries . | . . . Exploration | -11 -10 -10 ------------- Run | Yrd Mat Sub Turns Passed 1394 | . 1193 201 Spaces Moved 836 | 1 585 250 Core . | . . . Treads . | . . . Legs 38 | 1 37 . Wheels 798 | . 548 250 Hover . | . . . Flight . | . . . Fastest Speed 80 | 120 80 80 Average Speed 86 | 120 88 80 Slowest Speed 120 | 120 120 95 Overloaded Moves . | . . . Propulsion Burnouts . | . . . Robots Hopped . | . . . Potential Cave-ins . | . . . Cave-ins Triggered . | . . . Exploration Rate (%) 35 | 2 84 20 Regions Visited 2 Branch Regions 1 Pre-discovered Areas . | . . . Known Exits Taken . | . . . Unknown Exits Taken 2 | 1 1 . Scrap Searched . | . . . Spaces Dug . | . . . Terrain Destroyed . | . . . Melee . | . . . Projectile . | . . . AOE . | . . . Terrain Rammed . | . . . Walls Destroyed . | . . . Machines Disabled . | . . . Actions | -11 -10 -10 --------- Run | Yrd Mat Sub Total 1419 | . 1169 250 Wait 489 | . 489 . Move 834 | . 584 250 Hop . | . . . Pick Up 9 | . 9 . Fast Attach 5 | . 5 . Attach 2 | . 2 . Detach . | . . . Swap 8 | . 8 . Drop 14 | . 14 . Fire 57 | . 57 . Melee . | . . . Ram 1 | . 1 . Kick . | . . . Crush . | . . . Escape Stasis . | . . . Rewire . | . . . Trap . | . . . Miscellaneous . | . . . Route ------- -11/Scrapyard -10/Materials (discovered 5 exits: [*Mat x2] / [*Min x2] / [*Sub]) -10/Subcaves History --------- Turn | Location | Event 1 | -11/Scrapyard | Discovered new exit (range 0) 1 | -11/Scrapyard | Entered Materials 108 | -10/Materials | Discovered new exit (range 16) 118 | -10/Materials | Discovered new exit (range 16) 247 | -10/Materials | Core integrity fell below 50% 309 | -10/Materials | Build established: Mutant 791 | -10/Materials | Discovered new exit (range 9) 850 | -10/Materials | Discovered new exit (range 8) 914 | -10/Materials | Core integrity fell below 20% 1176 | -10/Materials | Prayed at D.C.S.S. Altar Unit 1189 | -10/Materials | Discovered new exit (range 6) 1194 | -10/Materials | Entered Subcaves 1195 | -10/Subcaves | Approached by a straggling Scientist 1233 | -10/Subcaves | Ambushed by Subdwellers from Twisted Machinery 1235 | -10/Subcaves | KI resistance permanently improved by X0-1V1 (+10%; -100 max core) 1280 | -10/Subcaves | System corruption reached 10% 1295 | -10/Subcaves | Shifting Twisted Machinery released Piercing Trap 1296 | -10/Subcaves | Shifting Twisted Machinery released Battle Rifle 1395 | -10/Subcaves | Destroyed by VF-HDX(R) with Subdweller Machine Gun Last Messages --------------- 01198_ E6-9OC(c): "Hey, let me tag along and I can get us both out of this nasty situation. At least I think I can... The group I got separated from was talking about a shortcut back to the UFD." 01233_ B7-M2G(R) emerges from the Twisted Machinery. 01235_ X0-1V1: "Any self-respecting god will have their pound of flesh." (permanent -100 core integrity, +10% KI resistance) E6-9OC(c): "I think it's somewhere southeast of here" 01279_ X0-1V1 brushes you with a corrupting influence (+18 system corruption). 01280_ 1ZZIXNAAWDN6<%UUV2YZ9,A5BMDF Piercing Trap falls loose from the Twisted Machinery. 01295_ W|%MU79RGR&Q8#35Q8QVIJRDF78ORIL%N Battle Rifle falls loose from the Twisted Machinery. 01310_ HA=GJP CG8EJFFH,AECZ 01325_ GN 7Z|IV2CNY,PMEHBFHH#4CY:RG4D6C#RGON 01340_ System corrupted: Matter fused (-7). 01384_ Wheel destroyed. 01389_ System corrupted: Matter fused (-9). 01389_ Assault Rifle destroyed. 01395_ X0-1V1 bursts into laughter! Map ----- +----------------------------------------------------+ | ?????????????????????????????????????????????????? | | ?????????????????????????????????????????????????? | | ?????????????????????????????????????????????????? | | ?????????????????????????????????????????????????? | | ?????????????????????????????????????????????????? | | ?????????????????????????????????????????????????? | | ???????????????????????#####?????????????????????? | | ???????????????????????# #?????????????????????? | | ???????????????????????# #?????????????????????? | | ???????????????????????# #?????????????????????? | | ???????????????????????# #?????????????????????? | | ???????????????????###### ##????????????????????? | | ????????????###???## ## ####?????????????????? | | ???????????## #??# #?????????????????? | | ??????????## #?## ##?????????????????? | | ??????????# ##### ##?####????????????? | | ???????????# ##?# ### #????????????? | | ????????????# ### #????????????? | | ?????????????# ##???????????? | | ?????????????## #???????????? | | ??????????????# ##???????????? | | ??????????????# ### #????????????? | | ??????????????###??## ##???????????? | | ????????????????????# R ##??????????? | | ????????????????????#### R #### #??????????? | | ??????????????#??##????# @ ##??## #??????????? | | ?????????????## ## ???##R #?????###??????????? | | ????????????## #??## R ##??????????????????? | | ???????????? ??# ##???????##??????????? | | ???????????? ?## #??????# #??????????? | | ???????????# ??# R##???# #?????????? | | ????????????# ?# ### #?????????? | | ?????????????# ## #???????? | | ??????????????# ???????? | | ???????????????# ## ##??????????? | | ???????????????#### ###??## ##???????????? | | ??????????????????# #????##?????##???????? | | ??????????????????# #???# ####? ###?????? | | ??????????????????# ##?? # # ????? | | ??????????????????## ### ????? | | ???????????????????### ????? | | ?????????????????????## "#???????????? | | ??????????????????????# ####???????????? | | ???????????????######?# ###??????????????? | | ?????????????### ####### #????????????????? | | ????????????## ###### ##???????????????? | | ????????????# ## #???????????????? | | ????????????# ## ##???????????????? | | ????????????#### ## #????????????????? | | ???????????????## #????????????????? | +----------------------------------------------------+ Best States ------------- Heat Dissipation 25 Energy Generation 14 Energy Capacity 250 Matter Stores 300 Matter Capacity 300 Sight Range 16 Terrain Scan Density 10 Armor Coverage 150 Resistance: KI 10 Evasion (%) 55 Item Schematics ----------------- None Robot Schematics ------------------ None Fabricated ------------ Nothing Repaired ---------- Nothing Studied --------- None Alien Tech Used ----------------- None Achievements -------------- None Challenges ------------ None Game ------ Seed BoreLegHarness Manual? 0 Play Time 00:11:41 Cumulative 133.7 hours Start 2026.08.23 @ 16:19:24 End 2026.08.23 @ 17:08:48 Sessions 1 Manual Loads 0 Difficulty Rogue Special Mode None Game No. 198 Rogue 181 Adventurer 15 Explorer 2 Win Type - Total 2 Types 1/0/0/1/0/0/0/0/0/0 Lore% 29 Gallery% 51 Achievement% 32 Wizard Run 0 Options --------- Layout 0 ASCII 0 Keyboard 0 Movement Arrows Keybinds 0 Fullscreen 1 Font 36/Smallcaps Map View 76x50 Zoom Use 0% Tactical HUD 1 Map Filters NONE Filters NONE Steam 1 RUN: 0475aa1c-681d-47df-a1f9-be8a0d643b06